{"text_format":"1","workbook":"xlsx","n_sheets":2,"sheets":["Instruções","Seleção Auto.Agências Viagens"],"not_rendered":{"charts":0,"images":3,"macros":1,"external_links":0,"defined_names":25,"comments":0,"pivot_tables":0},"unopened":[],"bounds":{"document_bytes":16777216,"sheet_cells":100000,"rows_first":2000,"rows_last":500,"rows_between":2000,"halvings":0,"cell_chars":16384,"cell_head_chars":4096},"cells_cut":0,"cells_raw":0,"read":"whole","date_system":"1900"}

{"sheet":"Instruções","index":0,"n_rows":33,"n_cols":9,"rows_kept":33,"cut":false,"hidden":false,"merged":[[2,2,2,8],[3,2,3,8]]}
[]
[]
[null,null,"LISTA DO REGISTO DAS AGÊNCIAS DE VIAGENS E TURISMO"]
[null,null,"Instruções"]
[]
[null,null,null,null,null,null,null,"Versão","2023-07-07"]
[]
[null,"Para que a folha de cálculo funcione corretamente, é necessário seguir os seguintes passos:"]
[]
[null,"1. Depois de descarregar o ficheiro, desbloquer o mesmo."]
[]
[]
[]
[]
[]
[]
[]
[]
[]
[]
[]
[]
[]
[]
[]
[]
[]
[]
[]
[]
[]
[]
[null,"2. Abrir o ficheiro e clicar em \"Ativar Edição\"."]

{"sheet":"Seleção Auto.Agências Viagens","index":1,"n_rows":124,"n_cols":14,"rows_kept":124,"cut":false,"hidden":false,"merged":[[1,0,1,13]]}
[]
["LISTA DO REGISTO DAS AGÊNCIAS DE VIAGENS E TURISMO"]
[null,null,null,null,null,null,null,null,null,null,null,null,"Versão:","2023-07-06"]
[]
[]
[]
[null,"SELEÇÃO AUTOMÁTICA E ALEATÓRIA PARA EFEITOS DE AJUSTE DIRETO"]
[]
["N.º Aleatório","Opções","Nº de registo","Denominação","Contacto (Email)","Nº de contribuinte","Marcas","Sede (Endereço)","Sede (Código postal)","Sede  (Localidade)","Sede (Concelho)","Sede (Distrito)","NUT III","Contacto (Telef/Telem.)"]
[84,1,{"$f":"INDEX(B$17:B$124,MATCH($A10,$A$17:$A$124,0))","v":" 3646"},{"$f":"INDEX(D$17:D$124,MATCH($A10,$A$17:$A$124,0))","v":"FRANCISCO C.S. MARTINS, SUCESSORES LDA"},"geral@fmartinstravel.com, geral@fmartinstravel.com","512003440","","Rua Marquês da Praia, 38","9500-089","Ponta Delgada","Ponta Delgada","Ilha de São Miguel","Região Autónoma dos Açores","296306300, 296583000"]
[14,2,{"$f":"INDEX(B$17:B$124,MATCH($A11,$A$17:$A$124,0))","v":" 9486"},"ATLANTIC R US, LDA","gm@atlantic2you.pt","516239554","ATLANTIC 2 YOU","Avenida Infante D. Henrique, 71, Loja 130, 1º","9504-529","Ponta Delgada","Ponta Delgada","Ilha de São Miguel","Região Autónoma dos Açores","296282227"]
[74,3,{"$f":"INDEX(B$17:B$124,MATCH($A12,$A$17:$A$124,0))","v":" 4185"},"Azores Ocean Hill, Lda.","azoresexperiences@gmail.com","510358888","","Ladeira da Igreja nº132 Castelo Branco","9900-323","Castelo Branco Hrt","Horta","Ilha do Faial","Região Autónoma dos Açores","962432694"]
[]
[null,"FONTE DA LISTA INDICATIVA: Registo Nacional de Turismo (RNT). Os utilizadores poderão complementar a informação aqui presente com a retirada de outras fontes oficiais."]
[]
["Nº de ordem","Nº de registo","Data do registo","Denominação","Contacto (Email)","Nº de contribuinte","Marcas","Sede (Endereço)","Sede (Código postal)","Sede  (Localidade)","Sede (Concelho)","Sede (Distrito)","NUT III","Contacto (Telef/Telem.)"]
[1," 11046","2023-05-29","LUCA DI MEOLA","info@azoresislands.info","302870954","","Rua Carvalho Araujo 18, 2º ","9500-040","PONTA DELGADA","Ponta Delgada","Ilha de São Miguel","Região Autónoma dos Açores","911014225"]
[{"$f":"+A17+1","v":2}," 10928","2023-04-24","AZORTRAVEL TSM - AGÊNCIA DE VIAGENS E TURISMO, LDA.","geral@azortravel.pt","517301342","","Avenida Infante D. Henrique, 44","9560-022","LAGOA (SÃO MIGUEL)","Lagoa (Açores)","Ilha de São Miguel","Região Autónoma dos Açores","296308310"]
[{"$f":"+A18+1","v":3}," 10900","2023-04-17","KEVIN GOULART UNIPESSOAL LDA","geral.walkinblue@gmail.com","517255707","Walk-In-Blue","Rua da Carreira, nº 120A","9900-323","CASTELO BRANCO HRT","Horta","Ilha do Faial","Região Autónoma dos Açores","963493018"]
[4," 10677","2023-01-10","NINE MEDIA COMPANY UNIPESSOAL LDA","pedro.fragoso@ninemedia.pt","515523518","","Largo São João De Deus, 60","9700-184","ANGRA DO HEROÍSMO","Angra do Heroísmo","Ilha Terceira","Região Autónoma dos Açores","963560243"]
[5," 10608","2022-11-23","SUNSET CAR, TRAVEL & TOURS LDA","geral@sunsetcar.pt","516818287","MERCADO DAS VIAGENS","CANADA DOS FOLHADOS 36","9700-574","SÃO MATEUS DA CALHETA","Angra do Heroísmo","Ilha Terceira","Região Autónoma dos Açores","910823816"]
[6," 10536","2022-10-25","MAPAS E COSTUMES CIRCUITOS TURISTICOS LDA","maria.costa@grupoanc.pt","514816449","","Rua Praia Dos Santos N 30","9500-706","PONTA DELGADA","Ponta Delgada","Ilha de São Miguel","Região Autónoma dos Açores","296247173"]
[7," 10516","2022-10-13","AZORES CONNECTIONS LDA","andy@azoresconnections.co.uk","516665014","","Rua Nova 3-A","9625-418","PORTO FORMOSO","Ribeira Grande","Ilha de São Miguel","Região Autónoma dos Açores","919310104"]
[8," 10455","2022-09-14","AR VIAGENS E TURISMO UNIPESSOAL LDA","info@arviagens.pt","517145243","","Rua Jordão de Vasconcelos,14","9545-163","CAPELAS","Ponta Delgada","Ilha de São Miguel","Região Autónoma dos Açores","917565934"]
[9," 10420","2022-08-19","LIFE Wellness Resorts Network Lda","egidio@lifewellnessazores.com","515206830","","Rua Doutor Manuel de Arriaga, No. 15","9800-549","VELAS","Velas","Ilha de São Jorge","Região Autónoma dos Açores","16132937578"]
[10," 10263","2022-06-07","MMCC - MATTEO MIGUEL CAROSI CORDEIRO, TURISMO & SERVIÇOS, LDA","info@tripixazores.com","514051833","Tripix Azores","Rua da Igreja, 23","9950-026","BANDEIRAS","Madalena","Ilha do Pico","Região Autónoma dos Açores","292623616"]
[11," 10251","2022-06-01","MR. TRAVEL AÇORES - VIAGENS E TURISMO LDA","l.sousa@mrtravel.pt","516773658","","Rua da Pedra 2","9500-449","PONTA DELGADA","Ponta Delgada","Ilha de São Miguel","Região Autónoma dos Açores","962957173"]
[12," 10164","2022-04-20","TRY AZORES, Unipessoal, Lda.","c.freitas@upstream-portugal.pt","516834657","","Rua do Marquês 14","9700-117","ANGRA DO HEROÍSMO","Angra do Heroísmo","Ilha Terceira","Região Autónoma dos Açores","963708787"]
[13," 10092","2022-03-09","@ AZORES EXPLORE YOUR SENSES LDA","geral@atazores.com","516584715","","Rua D. Maria José Borges, 137","9500-466","PONTA DELGADA","Ponta Delgada","Ilha de São Miguel","Região Autónoma dos Açores","963546528"]
[14," 9486","2021-01-05","ATLANTIC R US, LDA","gm@atlantic2you.pt","516239554","ATLANTIC 2 YOU","Avenida Infante D. Henrique, 71, Loja 130, 1º","9504-529","Ponta Delgada","Ponta Delgada","Ilha de São Miguel","Região Autónoma dos Açores","296282227"]
[15," 9339","2020-08-06","SERENITYMIRACLE IMPORTAÇÃO E EXPORTAÇÃO, REPARAÇÃO E TURISMO, UNIPESSOAL LDA.","itoc@itoc.pt","514762918","","Rua Dr. Aristides Moreira da Mota Nº 56","9500-054","Ponta Delgada","Ponta Delgada","Ilha de São Miguel","Região Autónoma dos Açores","296309090"]
[16," 9104","2020-05-14","Vista Verde Azores GMBH - Sucursal em Portugal","servipico@servipico.pt","980656621","","Rua do Poço, 21 - Cais do Pico","9940-361","São Roque do Pico","São Roque do Pico","Ilha do Pico","Região Autónoma dos Açores","927514024"]
[17," 8844","2020-01-31","REIS VIEIRA & RODRIGUES LDA","contabilidade@estreladamanha.pt","512061726","","Av. Infante D Henrique, 103","9500-764","Ponta Delgada","Ponta Delgada","Ilha de São Miguel","Região Autónoma dos Açores","296302516"]
[18," 8843","2020-01-31","RUTE MARIA BETTENCOURT FERREIRA RODRIGUES","rutembfrodrigues@gmail.com","217243827","AZORES PRO TRAVEL","Ao Lugar 64 Altares","9700-301","Altares","Angra do Heroísmo","Ilha Terceira","Região Autónoma dos Açores","967578575"]
[19," 8841","2020-01-31","MAGIC ISLANDS RENT-A-CAR UNIPESSOAL LDA","nelson.amaral@magicislands.pt, info@magicislands.pt","515417912","","Rua Mourato 70 A","9600-224","Ribeira Seca Rgr","Ribeira Grande","Ilha de São Miguel","Região Autónoma dos Açores","914418338, 912261378"]
[20," 8798","2020-01-10","J. M. CUNHA - COMÉRCIO DE AUTOMÓVEIS LDA","PORTO@AUTOCUNHA.NET","512061130","AUTOCUNHA - TRAVELLING WITH YOU","CANTO DOS PRESTES DE CIMA, 77 SÃO ROQUE","9500-702","Ponta Delgada","Ponta Delgada","Ilha de São Miguel","Região Autónoma dos Açores","917961532"]
[21," 8779","2019-12-16","BRUMAS & CENARIOS LDA","geral@brumasecenarios.com","515710318","","Estrada Regional, 16","9545-301","Remédios","Ponta Delgada","Ilha de São Miguel","Região Autónoma dos Açores","962374325"]
[22," 8761","2019-11-27","JOSE PIMENTEL EMILIO","n-emilio2011@hotmail.com","111833310","CORVO TRAVEL","RUA DO PORTO DA CASA S/N","9980-023","Corvo","Corvo","Ilha do Corvo","Região Autónoma dos Açores","912012404"]
[23," 8749","2019-11-20","WXJ - AVIATION SUPPORT & CONCIERGE, UNIPESSOAL LDA","accounting@wexjet.com, booking@airportwexperience.com, booking@airportwexperience.com","513265880","WEXPERIENCE CONCIERGE, WEXJET, WEXCELLENCE INFLIGHT GOURMET","Gabinete 67A - Aeroporto de Santa Maria","9580-402","Vila do Porto","Vila do Porto","Ilha de Santa Maria","Região Autónoma dos Açores","939301153, 218701025, 218701025"]
[24," 8651","2019-09-16","CARDOSO & BRITO LDA","cardosobrito1@gmail.com","510525130","","Rua Barão das Laranjeiras","9500-294","Ponta Delgada","Ponta Delgada","Ilha de São Miguel","Região Autónoma dos Açores","913277700"]
[25," 8511","2019-06-14","EDWARD MELO, UNIPESSOAL, LDA","edward.demelo@tourazores.com","515385255","","Rua Nicolau Sousa Lima, 54","9500-786","PONTA DELGADA","Ponta Delgada","Ilha de São Miguel","Região Autónoma dos Açores","+15082642169"]
[26," 8367","2019-03-21","Gary Roque Travassos","garytravassos32@gmail.com","215712080","","Rua do Rato 46, Matriz","9600-508","Ribeira Grande","Ribeira Grande","Ilha de São Miguel","Região Autónoma dos Açores","916141585"]
[27," 8269","2019-01-29","OCEANS AND FLOW UNIPESSOAL LDA","violetalapa@gmail.com","515073903","","Rua João Melo Abreu nº 26","9504-530","Ponta Delgada","Ponta Delgada","Ilha de São Miguel","Região Autónoma dos Açores","912605878"]
[28," 8188","2018-12-07","AZORIS HOTEIS SA","financeiro@azorishotels.com, financeiro@azorishotels.com, financeiro@azorishotels.com","512006555","","RUA DE LISBOA, AZORIS ROYAL GARDEN HOTEL","9500-216","Ponta Delgada","Ponta Delgada","Ilha de São Miguel","Região Autónoma dos Açores","296307313, 292207400, 295206600"]
[29," 8144","2018-11-15","localtoursAzores unipessoal lda","localtoursazores@sapo.pt","510914985","","Caminho das Areias 168","9600-148","Rabo de Peixe","Ribeira Grande","Ilha de São Miguel","Região Autónoma dos Açores","910366450"]
[30," 8051","2018-09-26","NELSON ARMANDO BRASIL","nelsonbrasiltopo@hotmail.com","178153168","","SÃO PEDRO-TOPO","9875-118","Topo","Calheta (Açores)","Ilha de São Jorge","Região Autónoma dos Açores","965528556"]
[31," 7997","2018-08-07","GREEN VACATIONS - GESTÃO DE ALOJAMENTO LOCAL E ATIVIDADES TURÍSTICAS, UNIPESSOAL LDA","geral@greenvacations.pt","514500328","","Rua da Mãe de Deus, 38 ","9500-321","Ponta Delgada","Ponta Delgada","Ilha de São Miguel","Região Autónoma dos Açores","296654358"]
[32," 7969","2018-07-24","PAULO AGUIAR UNIPESSOAL, LDA.","geral@aguiaturazores.com, reservas@aguiaturazores.com , reservas@aguiaturazores.com ","512085846","","RUA DA GUARITA, 132","9700-096","Angra do Heroísmo","Angra do Heroísmo","Ilha Terceira","Região Autónoma dos Açores","295217036, 912 340 762,  910 162 577"]
[33," 7912","2018-06-19","Pico Sport, Lda.","cagarra4@sapo.pt","512048681","","Rua Cardeal Costa Nunes","9950-323","Madalena (Pico)","Madalena","Ilha do Pico","Região Autónoma dos Açores","292622980"]
[34," 7754","2018-04-06","Maria de Lurdes Alexandre Noia Freitas","lurdes-noia-freitas@sapo.pt","123001684","","Rua dos Vales nº6","9970-380","Santa Cruz das Flores","Santa Cruz das Flores","Ilha das Flores","Região Autónoma dos Açores","917477850"]
[35," 7729","2018-03-27","SMASOLTRAV, LDA","nunorodrigues@smasoltrav.com","514814080","","Rua do Mercado, loja 3 ","9580-522","Vila do Porto","Vila do Porto","Ilha de Santa Maria","Região Autónoma dos Açores","926339639"]
[36," 7594","2018-01-29","Armando Filipe Mateus Cordeiro Felizardo Rodrigues","experienceoc@gmail.com","222405775","","Rua da Tronqueira nº7","9960-030","Fajã Grande","Lajes das Flores","Ilha das Flores","Região Autónoma dos Açores","965444505"]
[37," 7574","2018-01-17","Jorge Humberto Antunes Damião Dias","keepwalkingazores@gmail.com","192122622","","Rua Direita de Santa Catarina, 62 1ºdireito","9500-181","Ponta Delgada","Ponta Delgada","Ilha de São Miguel","Região Autónoma dos Açores","910361369"]
[38," 7484","2017-11-23","Azooree, Lda","geral@azooree.com","514551658","Azooree","Caminho de Baixo, 32, Velas, São Jorge","9800-222","Rosais","Velas","Ilha de São Jorge","Região Autónoma dos Açores","912219751"]
[39," 7330","2017-09-21","SANDRO GENTILE AZORIAN HOLIDAYS UNIPESSOAL LDA","sandro0gentile@gmail.com","513655271","","Rua Dr. Carlos Machado, 2","9500-105","Ponta Delgada","Ponta Delgada","Ilha de São Miguel","Região Autónoma dos Açores","918820457"]
[40," 7317","2017-09-15","A B T LDA","azoresbesttours@gmail.com","514503467","","Rua Dr. Armando Cortes Rodrigues Nº 56","9500-293","Ponta Delgada","Ponta Delgada","Ilha de São Miguel","Região Autónoma dos Açores","911706666"]
[41," 7278","2017-09-05","VADIVAN AZORES - TRANSPORTES E TURISMO UNIPESSOAL","geral@spottours.com","514369922","","Rua da Escola nº 5 - Ribeirinha","9700-442","Ribeirinha Agh","Angra do Heroísmo","Ilha Terceira","Região Autónoma dos Açores","964242969"]
[42," 7277","2017-09-05","CetaceanWatching Lda","dania.tesei@cwazores.com","512101086","","Avenida Padre Nunes da Rosa","9950-302","Madalena (Pico)","Madalena","Ilha do Pico","Região Autónoma dos Açores","911133658"]
[43," 7162","2017-08-09","Rui Manuel da Silva Fagundes","azorestravel.turismo@gmail.com, azorestravel.turismo@gmail.com","199024910","","Rua Dr Aníbal Bettencourt,123","9700-068","Angra do Heroísmo","Angra do Heroísmo","Ilha Terceira","Região Autónoma dos Açores","963800339, 963800339"]
[44," 7091","2017-07-24","CAMILO SIMOES DA COSTA","camilocosta@sapo.pt, camilocosta@sapo.pt, camilocosta@sapo.pt, camilocosta@sapo.pt, camilocosta@sapo.pt","183986202","","camilocosta@sapo.pt","9930-121","Lajes do Pico","Lajes do Pico","Ilha do Pico","Região Autónoma dos Açores","292672000, 292672000, 292672000, 292672000, 29267200"]
[45," 7021","2017-06-23","DIVE AZORES LDA","INFO@DIVEAZORES.NET","512068100","","Rua Médico Avelar 13 A","9900-117","Horta","Horta","Ilha do Faial","Região Autónoma dos Açores","967882214"]
[46," 7001","2017-06-19","Neogallant Açores-Transporte e Turismo,Lda","neogallantacores@gmail.com","514294418","","Rua Visconde Santa Barbara nº4, 1º Esquerdo Poente,  São Pedro","9500-508","Ponta Delgada","Ponta Delgada","Ilha de São Miguel","Região Autónoma dos Açores","913106036"]
[47," 6885","2017-04-28","10.000 Hotels and 10.000 Tours, Unip Lda","margarida@10000hoteis.com","508461502","","Rua Caminho do Porto, 19 J","9500-552","Ponta Delgada","Ponta Delgada","Ilha de São Miguel","Região Autónoma dos Açores","915943200"]
[48," 6877","2017-04-24","TuriAzores - Animação Turística Unipessoa Lda","info@turiazores.com","513345965","","Estrada 25 de Abril 31-D 1E","9760-403","Praia da Vitória","Praia da Vitória","Ilha Terceira","Região Autónoma dos Açores","914218008"]
[49," 6804","2017-03-20","ATLANTIMAGIA- TURISMO LDA","atlantimagia@gmail.com","508668832","","RUA PADRE JOÃO FURTADO PACHECO, 7","9560-117","LAGOA (SÃO MIGUEL)","Lagoa (Açores)","Ilha de São Miguel","Região Autónoma dos Açores","913961694"]
[50," 6798","2017-03-15","JLGonçalves, Lda","viagens@zenitravel.com, reservas@zenitravel-nacional.com","514230096","","Largo de São Bento, nº 21","9700-180","Angra do Heroísmo","Angra do Heroísmo","Ilha Terceira","Região Autónoma dos Açores","295216523, 964998836"]
[51," 6769","2017-03-03","NATURAVAILABLE UNIPESSOAL LDA","geral@josemanuelfranco.com","513056416","FOTOTOUR TRAVEL","Rua das Laranjeiras 15 2º. DA","9500-317","Ponta Delgada","Ponta Delgada","Ilha de São Miguel","Região Autónoma dos Açores","296383666"]
[52," 6770","2017-03-03","AZORES DTM - DESTINATION & TRAVEL MANAGEMENT, LDA","rui.moniz@azoresdtm.com","514178418","EMVIAGEM, PTDMC","Av. D. João III, 13, 7º Dto.","9500-310","Ponta Delgada","Ponta Delgada","Ilha de São Miguel","Região Autónoma dos Açores","964 826 365"]
[53," 6717","2017-02-02","Azorestouch, S.A","reservas@azorestouch.com","514076054","","Estrada. Dr. Marcelino Costa Moules, nº 104","9700-321","Cinco Ribeiras","Angra do Heroísmo","Ilha Terceira","Região Autónoma dos Açores","916866142"]
[54," 6693","2017-01-24","Picos de Aventura - Animação e Lazer, S.A","geral@picosdeaventura.com, geral@picosdeaventura.com","512071438","","Marina Pêro de Teive, Avenida João Bosco Mota Amaral","9500-771","Ponta Delgada","Ponta Delgada","Ilha de São Miguel","Região Autónoma dos Açores","296283288, 296283288"]
[55," 6695","2017-01-24","BumFit Terceira Lda","luiscarneiro1982@gmail.com","510544657","","Travessa do Fanal n.26","9700-097","Angra do Heroísmo","Angra do Heroísmo","Ilha Terceira","Região Autónoma dos Açores","914298424"]
[56," 6652","2017-01-04","Costumes de Verão - Agência de Viagens, Aluguer e Hotelaria, Lda.","motorent.anc@gmail.com","513163425","","RUA PRAIA DOS SANTOS, 30, SÃO ROQUE","9500-706","Ponta Delgada","Ponta Delgada","Ilha de São Miguel","Região Autónoma dos Açores","967309909"]
[57," 6633","2016-12-20","IDILICA MIRAGEM Viagens e Turismo Unipessoal Lda","azorestours@outlook.pt","514085320","","Estrada 28 de Maio, 20","9545-221","FENAIS DA LUZ","Ponta Delgada","Ilha de São Miguel","Região Autónoma dos Açores","919148836"]
[58," 6606","2016-12-02","BRASIL & SILVA LDA.","reservas.virver@gmail.com","514141077","","Cruz Nova nº 22","9850-068","Calheta (São Jorge)","Calheta (Açores)","Ilha de São Jorge","Região Autónoma dos Açores","966780152"]
[59," 6541","2016-10-31","Espaço Talassa - Exploração Turística Marítima, Lda.","espacotalassa@espacotalassa.com","512025240","","Rua dos Baleeiros","9930-141","Lajes do Pico","Lajes do Pico","Ilha do Pico","Região Autónoma dos Açores","292672010"]
[60," 6503","2016-10-07","Viajata Animação Turística, Lda.","marina.cabral@lucromais.pt","509258000","","Rua Nicolau Sousa Lima, 54","9500-786","Ponta Delgada","Ponta Delgada","Ilha de São Miguel","Região Autónoma dos Açores","296308872"]
[61," 6421","2016-08-04","ONTRAVEL DMC, UNIPESSOAL LDA","info@ontravel.pt, info@ontravel.pt","513353488","Madeira On Travel, Azores On Travel, OnTravel DMC","Rua de São João Nº 7","9500-107","PONTA DELGADA","Ponta Delgada","Ilha de São Miguel","Região Autónoma dos Açores","+351296713036, +351296713036"]
[62," 6365","2016-07-04","New Tour Azores, S.A.","financeiro@newtour.pt","509285279","","AV. INFANTE D. HENRIQUE,  LOJA 19 - PORTAS DO MAR","9500-150","Ponta Delgada","Ponta Delgada","Ilha de São Miguel","Região Autónoma dos Açores","217510230"]
[63," 6261","2016-04-29","Season Challenge Desenvolvimento Local e Atividades Maritimo - Turisticas Lda","costumerservice@seasonchallenge.pt, costumerservice@seasonchallenge.pt","510915027","Season Challenge, Azorespecials","Rua Dr. Hugo Moreira nº 36, 5º Dto nascente","9500-792","Ponta Delgada","Ponta Delgada","Ilha de São Miguel","Região Autónoma dos Açores","914464511, 914464511"]
[64," 6205","2016-04-04","Greenzone -  Animação Turistica,Unipessoal, Lda","greenzoneazores@hotmail.com","512094870","","Canada Nova do populo 62","9560-406","Lagoa (São Miguel)","Lagoa (Açores)","Ilha de São Miguel","Região Autónoma dos Açores","296385718"]
[65," 6109","2016-02-11","Our Island Lda","ritacartageno@ourisland-azores.com","513833722","OurIsland","Rua Serpa Pinto, 32","9900-095","Horta","Horta","Ilha do Faial","Região Autónoma dos Açores","917790781"]
[66," 5903","2015-10-12","Valido e Martins Lda","eleuteriovalido@hotmail.com","512016917","","Rua Jordão Jacome Raposo ,2, Faja Baixo","9500-784","Ponta Delgada","Ponta Delgada","Ilha de São Miguel","Região Autónoma dos Açores","296714578"]
[{"$f":"+A82+1","v":67}," 5605","2015-06-30","RESTAURANTE TONYS, SOCIEDADE UNIPESSOAL, LDA","tonys@sapo.pt","512093822","","Largo do Teatro Nº5","9675-036","Furnas","Povoação","Ilha de São Miguel","Região Autónoma dos Açores","296584290"]
[68," 5349","2015-04-10","André Ortiz Parreira","andreoparreira@hotmail.com","222589930","","Estrada de Cima, n.º 3, ","9760-133","Porto Martins","Praia da Vitória","Ilha Terceira","Região Autónoma dos Açores","913366399"]
[69," 5323","2015-04-06","Josef Steininger-Unipessoal, Lda","seppsteininger@hotmail.com","509641245","","Rua São João n.º 16","9600-095","Rabo de Peixe","Ribeira Grande","Ilha de São Miguel","Região Autónoma dos Açores","916723437"]
[70," 5209","2015-03-04","TAAVT-Trip Azores Agencia de Viagens e Turismo Lda","m.l.contabilidades@hotmail.com","513397370","","Rua Direita do Ramalho , 158A","9500-180","Ponta Delgada","Ponta Delgada","Ilha de São Miguel","Região Autónoma dos Açores","919015778"]
[71," 4696","2014-07-03","AMAZING TOURS LDA","ra@amazingtours.pt","509599036","","RUA ANTÓNIO MONIZ BARRETO N. 31, ROSÁRIO","9560-051","Lagoa (São Miguel)","Lagoa (Açores)","Ilha de São Miguel","Região Autónoma dos Açores","962526603"]
[72," 4442","2014-02-28","NOVO RUMO VIAGENS E TURISMO, UNIPESSOAL LDA","geral@novorumo.pt, geral@novorumo.pt","510943993","","RUA DR HUMBERTO DOS SANTOS FREITAS, 9","9900-146","Horta","Horta","Ilha do Faial","Região Autónoma dos Açores","292391531, 292391531"]
[73," 4313","2013-12-06","Aldeia da Fonte, Sociedade de Investimentos Turísticos, Lda","fontetravel@aldeiadafonte.com","512025622","Fonte","Caminho de Baixo, Silveira","9930-177","Lajes do Pico","Lajes do Pico","Ilha do Pico","Região Autónoma dos Açores","292 679 500"]
[74," 4185","2013-09-30","Azores Ocean Hill, Lda.","azoresexperiences@gmail.com","510358888","","Ladeira da Igreja nº132 Castelo Branco","9900-323","Castelo Branco Hrt","Horta","Ilha do Faial","Região Autónoma dos Açores","962432694"]
[75," 4059","2013-07-08","ATLANTIGADGET, UNIPESSOAL, LDA","carlosbaptista@newtour.pt","510654932","TEAM2GO","RUA D. JOÃO IV, Nº 32","9880-375","Santa Cruz da Graciosa","Santa Cruz da Graciosa","Ilha da Graciosa","Região Autónoma dos Açores","217520619"]
[76," 3961","2013-05-09","LAZORICA, LDA","geral@lazorica.pt","510542638","","Rua Duarte Borges, n.º 50.º, 1.º Dto","9500-719","Ponta Delgada","Ponta Delgada","Ilha de São Miguel","Região Autónoma dos Açores","296385633"]
[77," 3877","2013-03-19","IDEASTATION, SOLUÇÕES INFORMÁTICAS, UNIPESSOAL, LDA.","luis.nunes@ideastation.eu","509829333","INOVTRAVEL","Estrada de São Gonçalo 235","9500-343","Ponta Delgada","Ponta Delgada","Ilha de São Miguel","Região Autónoma dos Açores","296205078"]
[78," 3838","2013-03-04","Natura Lusitana, LDA","info@natura-lusitana.com","510545106","","estrada regional nº52","9950-125","Candelária Mad","Madalena","Ilha do Pico","Região Autónoma dos Açores","910253343"]
[79," 3803","2013-02-18","Sweet Morning, Serviços de Viagens e Turismo, Lda","anacristinaflor906@gmail.com","509033326","","Avenida D. João III nº63 - Ponta Delgada - Açores","9500-310","Ponta Delgada","Ponta Delgada","Ilha de São Miguel","Região Autónoma dos Açores","296652133"]
[80," 3770","2013-01-25","MARIA DE FATIMA COUTO DA COSTA","mariafaticaccosta@hotmail.com","188376461","","Rua do Galo 11","9700-091","Angra do Heroísmo","Angra do Heroísmo","Ilha Terceira","Região Autónoma dos Açores","927263158"]
[81," 3720","2012-12-14","Picotur Agência de Viagens e Turismo Lda","cmorais@aerohorta.com","512045143","","Rua Carlos Dabney, 9 - A","9950-327","Madalena (Pico)","Madalena","Ilha do Pico","Região Autónoma dos Açores","292622499"]
[82," 3696","2012-11-28","Futurismo Empresa de Turismo Náutico, Lda","info@futurismo.pt, info@futurismo.pt","512031495","FUTURISMO AZORES ADVENTURES","Estrada Regional Ribeira Grande, 1001A","9500-702","Ponta Delgada","Ponta Delgada","Ilha de São Miguel","Região Autónoma dos Açores","296559385, 296559385"]
[83," 3647","2012-10-22","EASY CHOICE, UNIPESSOAL LDA","filipe.rodrigues@ibercup.com","512105901","IberCup","Rua Canada da Ribeirinha, nº 102","9700-166","Angra do Heroísmo","Angra do Heroísmo","Ilha Terceira","Região Autónoma dos Açores","918991773"]
[84," 3646","2012-10-22","FRANCISCO C.S. MARTINS, SUCESSORES LDA","geral@fmartinstravel.com, geral@fmartinstravel.com","512003440","","Rua Marquês da Praia, 38","9500-089","Ponta Delgada","Ponta Delgada","Ilha de São Miguel","Região Autónoma dos Açores","296306300, 296583000"]
[85," 3605","2012-10-02","JOSÉ TORRES TELES & FILHOS, LDA.","tta.angra@telestravel.com, tta.praia@telestravel.com","512006334","","RUA DA RÉPUBLICA, 136/138","9700-191","Angra do Heroísmo","Angra do Heroísmo","Ilha Terceira","Região Autónoma dos Açores","295213246, 295512044"]
[86," 3542","2012-08-31","AÇORIBERICA-AGENCIA DE VIAGENS E TURISMO, LDA.","vitor.goncalves@acoriberica.pt","512050171","","RUA BENTO JOSE MORAIS, 11 R/c","9500-772","Ponta Delgada","Ponta Delgada","Ilha de São Miguel","Região Autónoma dos Açores","296205750"]
[87," 3544","2012-08-31","MELO, LDA","catarina@melotravel.com","512005133","","Rua de Santa Luzia, 7/11","9500-114","Ponta Delgada","Ponta Delgada","Ilha de São Miguel","Região Autónoma dos Açores","296205381"]
[88," 3530","2012-08-22","Viavitória - Agência de Viagens e Turismo Unipessoal Lda.","alberto@viavitoriaviagens.pt, lara@viavitoriaviagens.pt","512041245","","Largo Conde da Praia, 8","9760-438","Praia da Vitória","Praia da Vitória","Ilha Terceira","Região Autónoma dos Açores","295512101, 295212066"]
[89," 3526","2012-08-20","Aerohorta Agência de Viagens e Turismo, Lda.","cmorais@aerohorta.com, eamaral@aerohorta.com","512047952","","Rua Conselheiro Medeiros, 2","9900-144","Horta","Horta","Ilha do Faial","Região Autónoma dos Açores","292208130, 292672660"]
[90," 3478","2012-07-09","ANGRATRAVEL - AGÊNCIA DE VIAGENS E TURISMO, LDA.","geral@angratravel.pt","512063206","","RUA DIREITA Nº155","9700-066","Angra do Heroísmo","Angra do Heroísmo","Ilha Terceira","Região Autónoma dos Açores","295206900"]
[91," 3471","2012-06-29","AQUARIUS - VIAGENS E TURISMO LDA","antonio@viagensaquarius.com","512041059","","RUA INFANTE D. HENRIQUE Nº 21","9800-554","Velas","Velas","Ilha de São Jorge","Região Autónoma dos Açores","295432006"]
[92," 3431","2012-05-28","Angra 2000 - Viagens e Turismo Lda","geral@angra2000.com","512037221","","Rua Carreira dos Cavalos 26A","9700-167","Angra do Heroísmo","Angra do Heroísmo","Ilha Terceira","Região Autónoma dos Açores","295215555"]
[93," 3424","2012-05-23","Via Graciosa- Agência de Viagens e Turismo, Lda","geral@viagraciosa.com","512075492","","Rua Serpa Pinto nº19","9880-386","Santa Cruz da Graciosa","Santa Cruz da Graciosa","Ilha da Graciosa","Região Autónoma dos Açores","295732981"]
[94," 3421","2012-05-18","Agência Açoreana de Viagens","margarida.cabral@bensaude.pt","512005290","Açoreana-The Azores DMC","Rua de Lisboa - Edifício Varela s/n","9500-216","Ponta Delgada","Ponta Delgada","Ilha de São Miguel","Região Autónoma dos Açores","296301864"]
[95," 3408","2012-05-08","AGENCIA VIAGENS TURISMO OCEANO","vocean@mail.telepac.pt, vocean@mail.telepac.pt","512076898","","EDIFICIO  OCEANO - RUA DRº MANUEL DE ARRIAGA S/N","9800-549","Velas","Velas","Ilha de São Jorge","Região Autónoma dos Açores","295412033, 292 623 835  "]
[96," 3386","2012-04-20","TURANGRA VIAGENS E TURISMO, LDA","financeiro@turangra.com, financeiro@turangra.com, financeiro@turangra.com, financeiro@turangra.com, financeiro@turangra.com","512034095","Best Travel","RUA CARREIRA DOS CAVALOS, 47 A","9700-167","Angra do Heroísmo","Angra do Heroísmo","Ilha Terceira","Região Autónoma dos Açores","295401515, 217986201, 295204047, 295732401, 296304780"]
[97," 3380","2012-04-18","TOP ATLÂNTICO DMC - VIAGENS E TURISMO, S.A.","s.miguel@topatlantico.com, info@topatlanticodmc.com, info@topatlanticodmc.com, terceira@topatlantico.com, horta@topatlantico.com","500269220","","Rua dos Mercadores, nº 9, R/C","9500-092","PONTA DELGADA","Ponta Delgada","Ilha de São Miguel","Região Autónoma dos Açores","218646835, 218646900, 289887401, 218646845, 218646850"]
[98," 3342","2012-03-23","PANAZORICA - AGENCIA DE VIAGENS, LDA","luiscogumbreiro@panazorica.pt","512059985","","Rua dos Mercadores, n.º 82","9500-092","Ponta Delgada","Ponta Delgada","Ilha de São Miguel","Região Autónoma dos Açores","296301720"]
[99," 3308","2012-03-09","Via São Jorge - Agência de Viagens e Turismo Unipessoal lda","geral@viasaojorge.com","512077630","","Rua do Roque","9850-041","Calheta (São Jorge)","Calheta (Açores)","Ilha de São Jorge","Região Autónoma dos Açores","295416042"]
[100," 3242","2012-01-30","Triângulo de Fogo - Viagens e Turismo, Lda","info@azorestours.net","510007031","BIGBLUE-ADVENTURES","Rua Praia dos Santos, 25","9500-706","Ponta Delgada","Ponta Delgada","Ilha de São Miguel","Região Autónoma dos Açores","966078829"]
[101," 3158","2011-11-22","Tui Portugal - Agência de Viagens e Turismo, S.A.","hrtuiportugal@tui.com, ana.barbosa@tui.com, ana.ramos@tui.com, ana.ramos@tui.com, Não tem","501058400","","Edifício Tui, Lote 2, Monte da Ria","8005-303","Faro","Faro","Faro","Algarve","289001600, 291206103, 289001600, 296093060, 289818911"]
[102," 2954","2011-07-08","Fundação INATEL","inatel.aheroismo@inatel.pt, inatel.aveiro@inatel.pt, inatel.beja@inatel.pt, inatel.braga@inatel.pt, inatel.braganca@inatel.pt, inatel.cbranco@inatel.pt, inatel.coimbra@inatel.pt, inatel.covilha@inatel.pt, inatel.evora@inatel.pt, inatel.faro@inatel.pt, inatel.funchal@inatel.pt, inatel.guarda@inatel.pt, inatel.horta@inatel.pt, inatel.leiria@inatel.pt, inatel.alvalade@inatel.pt, inatel.rossio@inatel.pt, inatel.pdelgada@inatel.pt, inatel.portalegre@inatel.pt, inatel.porto@inatel.pt, inatel.santarem@inatel.pt, inatel.setubal@inatel.pt, inatel.vcastelo@inatel.pt, inatel.vreal@inatel.pt, inatel.viseu@inatel.pt, inatel.trindade@inatel.pt, inatel.santacatarina@inatel.pt, inatel.ramalde@inatel.pt","500122237","INATEL Turismo","Calçada de Santana, 180","1169-062","Lisboa","Lisboa","Lisboa","Área Metropolitana de Lisboa","295 215 038, 234 405 200, 284 318 070, 253 613 320, 273 001 100, 272 001 090, 239 853 380, 275 335 893, 266 730 520, 289 898 940, 291 221 614, 271 212 730, 292 292 812, 244 832 319, 211 156 025, 211 146 820, 296 284 684, 245 337 016, 220 007 950, 243 309 010, 265 009 780, 258 823 357, 259 324 117, 232 423 762, 211 155 779, 220007990, 220007985"]
[103," 2256","2011-06-03","CIF - Agência de Viagens  e Turismo, S.A.","funchal@interpass.pt, acores@interpass.pt, porto@interpass.pt, portimao@interpass.pt","504137085","INTERPASS","Av Elias Garcia, 45D","1000-148","Lisboa","Lisboa","Lisboa","Área Metropolitana de Lisboa","291215170, 296650810, 226051310, 282410780"]
[104," 2365","2011-06-03","Mediterranean Travel Services, Incoming Portugal S.A","osório.gomes@mtsglobe.com, catarina.franco@mtsglobe.com, gabriel.goncalves@mtsglobe.com, ema.ventura@mtsglobe.com","505271907","","Rua Alexandre Herculano nº 9","8000-204","Faro","Faro","Faro","Algarve","223 280 240, 291 203 917, 296 630 314, 289 898 920"]
[105," 1702","2011-06-03","Viagens Abreu, S. A.","chaves@abreu.pt, vconde@abreu.pt, dvcoimbra@abreu.pt, alegro@abreu.pt, parque.nascente@abreu.pt, campopequeno@abreu.pt, funchal@abreu.pt, angra@abreu.pt, horta@abreu.pt, djoaoiii@abreu.pt, pico@abreu.pt, agueda@abreu.pt, pvitoria@abreu.pt, madalenas@abreu.pt, aeromadeira@abreu.pt, parqueatlantico@abreu.pt , madeirashop@abreu.pt, palaciogelo@abreu.pt, dvdouro@abreu.pt, avenida@abreu.pt, espinho@abreu.pt, spacioshop@abreu.pt, oeirasshop.piso1@abreu.pt, alegrosetubal@abreu.pt, leiria.shopping@abreu.pt, nova.arcada@abreu.pt, falgarve@abreu.pt, tomar@abreu.pt, guimarãesshopping@abreu.pt, 8avenida@abreu.pt, marshoploule@abreu.pt, evora@abreu.pt, restelo@abreu.pt, alverca@abreu.pt, odivelas@abreu.pt, ribeiragrande@abreu.pt, alges@abreu.pt, almada@abreu.pt, sferreira.amadora.2@.abreu.pt, barcelos@abreu.pt, braga@abreu.pt, cascais@abreu.pt, estoril@abreu.pt , gondomar@abreu.pt, guimaraes@abreu.pt, leiria@abreu.pt, linda-a-velha@abreu.pt, telheiras@abreu.pt, londres@abreu.pt, benfica@abreu.pt, ourique@abreu.pt, pnacoes@abreu.pt, maia@abreu.pt, , parede@abreu.pt, paredes@abreu.pt, portimão@abreu.pt, antas@abreu.pt, pvarzim@abreu.pt, sjmadeira@abreu.pt, stirso@abreu.pt, setubal@abreu.pt, viana@abreu.pt, vconde@abreu.pt, vfxira@abreu.pt, arrabida@abreu.pt , vngaia2@abreu.pt, famalicão@abreu.pt, viseu@abreu.pt, cbranco@abreu.pt, cascaishhop@abreu.pt, saldanha@abreu.pt, bragaparque@abreu.pt, covilhã@abreu.pt, bomsucesso@abreu.pt, campussjoao@abreu.pt, amoreiras@abreu.pt, tvedras@abreu.pt, chiado@abreu.pt, norteshop@abreu.pt, vcatarina@abreu.pt, sandre@abreu.pt, fatima@abreu.pt, algarveshop@abreu.pt , gaiashop@abreu.pt, planhoso@abreu.pt , guarda@abreu.pt , smfeira@abreu.pt, beja@abreu.pt, , dvporto@abreu.pt, portalegre@abreu.pt, coimbra3@abreu.pt , penafiel@abreu.pt, tnovas@abreu.pt, figueira@abreu.pt, aveiro@abreu.pt, marshop@abreu.pt, colombo@abreu.pt, fozporto@abreu.pt, riosul@abreu.pt , assistencias.opo@abreu.pt , foralmada@abreu.pt, santarem@abreu.pt, dvtejo@abreu.pt, caldasrainha@abreu.pt, pmanso@abreu.pt, mafra@abreu.pt, espacoguim@abreu.pt, oazemeis@abreu.pt, fcoimbra@abreu.pt, maiashop@abreu.pt, fmontijo@abreu.pt, cbranco@abreu.pt, louresshop@abreu.pt, cacem@abreu.pt, glicinias@abreu.pt, avigreja@abreu.pt, mtomar@abreu.pt, matosinhos@abreu.pt, fsintra@abreu.pt, vgama@abreu.pt","500297177","","Praça da Trindade nº142 - 4º","4000-539","Porto","Porto","Porto","Área Metropolitana do Porto","276300070, 252240710, 239007190, 211156880, 220028900, 210079330, 291205900, 295204660, 292208490, 296650880, 292628900, 234690320, 295545490, 291205990, 291205980, 296000710 , 291006540 , 232483510, 259001120, 296304450, 227330850, 213230230, 214694160, 26510050, 244070440, 253071940, 289106160, 249108280, 253079120, 256200570, 289100580, 266769180, 210737260, 218297910, 219344700, 296470630, 214118270, 212729820, 214985930, 253808030, 253200540, 214848300, 214646060, 224663780, 253421880, 244830730, 214156000, 217520990, 218452230, 217710980, 213839620, 218924030, 229437820, 222043547, 214569580/4 li, 255 780 270, 282460560, 225074010, 252298330, 256200570, 252800590, 265547670, 258801500, 252240710, 263280710, 223746740, 223747180, 252308840, 232480130, 272348530, 214604260, 213587610, 253250160, 275310610, 225430160, 225072840, 213835110, 261337060, 213261330, 229574250, 222074670, 269759160, 249530510, 289560290, 223749280, 253631733, 271232750,  256377020, 284313230, 218411090, 225081300, 245300690, 239488390, 255728310, 249839320, 233408220, 234377750, 229998200, 217106230, 225323860, 212276200, 222043682, 212508250, 243356590, 214787330, 262839600, 225320510, 261810090, 253539940, 256690080, 239801460, 220045350, 211155600, 272348530, 211155610, 211155650, 234004730, 210079590, 217995320, 229397990, 211155890, 211156500"]
[106," 2800","2011-06-03","Destination Travel Solutions, Lda.","catarina.franco@mtsglobe.com, ema.ventura@mtsglobe.com, ema.ventura@mtsglobe.com, ema.ventura@mtsglobe.com","508465613","","Rua Alexandre Herculano nº 9","8000-204","Faro","Faro","Faro","Algarve","291 203900, 296 630314, 21 1106036, 289898920"]
[107," 2084","2011-06-03","Viagens El Corte Inglês, S.A.","funchal@viagenselcorteingles.pt, braga@viagenselcorteingles.pt, alges@viagenselcorteingles.pt, pontadelgada@viagenselcorteingles.pt, loures@viagenselcorteingles.pt, cclisboa@viagenselcorteingles.pt, faro@viagenselcorteingles.pt, expo@viagenselcorteingles.pt, beloura@viagenselcorteingles.pt, gaiacc@viagenselcorteingles.pt, aveiro@viagenselcorteingles.pt, evora@viagenselcorteingles.pt, caldas@viagenselcorteingles.pt, leiriacentro@viagenselcorteingles.pt, fluvial@viagenselcorteingles.pt","980099323","","Av António Augusto de Aguiar, 31","1050-012","Lisboa","Lisboa","Lisboa","Área Metropolitana de Lisboa","291710300 , 253206250, 219179310, 217803975, 217803975, 213711700, 289894060, 218922490, 219247630, 223773111, 234894030, 266739 130, 262889330 , 244860150, 22.616.75.60"]
[108," 2739","2011-06-03","Buzzpath - Agência de Viagens, Lda.","finance@buzzportugal.com, finance@buzzportugal.com, finance@portugaldmc.buzz, finance@portugaldmc.buzz","508551579","","Av Elias Garcia, 147-5º Esqº","1050-099","Lisboa","Lisboa","Lisboa","Área Metropolitana de Lisboa","211147160, 289807350, 211147160, 211147160"]